bitfinex-derivatives/quotes_BNBF0:USTF0_20250112
["timestamp","ask_amount","ask_price","bid_price","bid_amount"]
[1736687274604,1.07849032,691.95,690.62,2.06940282]
[1736687275007,1.07849032,691.95,690.62,2.98052065]
[1736687275511,0.28903404,691.96,690.65,1.29642876]
[1736687275711,0.28903404,691.96,690.66,0.28957808]
[1736687276312,0.28903404,691.96,690.66,2.98050388]
[1736687276612,0.28903404,691.96,690.69,1.29642876]
[1736687277211,1.36752436,691.96,690.7,1.29642876]
[1736687277906,1.36752436,691.96,690.7,2.20754659]
[1736687279013,1.36752436,691.96,690.7,5.206094]
[1736687279312,1.36752436,691.96,690.71,2.6909258]
[1736687280813,1.36752436,691.96,690.71,1.77980797]
[1736687281013,1.36752436,691.96,690.72,2.99854741]
[1736687281214,1.36752436,691.96,690.73,1.77980797]
[1736687281414,1.07849032,691.94,690.73,1.77980797]
[1736687282213,1.07849032,691.94,690.73,2.69170903]
[1736687282513,1.07849032,691.95,690.73,2.69170903]
[1736687282815,1.07849032,691.95,690.74,1.77980797]
[1736687283114,1.07849032,691.95,690.68,2.69171184]
[1736687283409,1.36752436,691.96,690.68,2.69171184]
[1736687283615,1.36752436,691.96,690.69,2.99854741]
[1736687283915,1.36752436,691.96,690.7,2.69171184]
[1736687284114,0.28903404,691.96,690.7,2.69171184]
[1736687284315,0.28903404,691.96,690.7,2.98127315]
[1736687285219,0.28903404,691.96,690.7,4.27770191]
[1736687285417,0.28903404,691.96,690.71,5.69025925]
[1736687285717,0.28903404,691.96,690.72,2.69171184]
[1736687286217,0.28903404,691.96,690.72,3.9881406]
[1736687286517,0.28903404,691.96,690.73,0.91190387]
[1736687287119,0.28903404,691.96,690.72,3.07623673]
[1736687287416,0.28903404,691.96,690.73,2.99854741]
[1736687287620,0.28903404,691.96,690.74,1.77980797]
[1736687288418,0.28903404,691.96,690.73,2.99854741]
[1736687288619,0.28903404,691.96,690.74,1.78303082]
[1736687288819,0.28903404,691.96,690.7,0.28956131]
[1736687290912,1.07849032,691.94,690.7,0.28956131]
[1736687291919,0.28903404,691.96,690.7,0.28956131]
[1736687292718,1.07849032,691.95,690.7,0.28956131]
[1736687294215,1.36752436,691.96,690.7,0.28956131]
[1736687295320,1.07849032,691.94,690.7,0.28956131]
[1736687296620,1.36752436,691.96,690.7,0.28956131]
[1736687297621,0.28903404,691.96,690.7,0.28956131]
[1736687304027,0.28903404,691.96,690.7,5.98351218]
[1736687304223,0.28903404,691.96,690.71,2.69540346]
[1736687304425,0.28903404,691.96,690.72,0.28955293]
[1736687309937,1.07849032,691.92,690.72,0.28955293]
[1736687311836,0.28903404,691.96,690.72,0.28955293]
[1736687311837,1.36752436,691.96,690.72,0.28955293]
[1736687312935,0.28903404,691.96,690.72,0.28955293]
[1736687327447,1.07849032,691.95,690.72,0.28955293]
[1736687328353,1.36752436,691.96,690.72,0.28955293]
[1736687329949,1.07849032,691.94,690.72,0.28955293]
[1736687331160,0.28903404,691.96,690.72,0.28955293]
[1736687333160,1.07849032,691.93,690.72,0.28955293]
[1736687334159,1.07849032,691.92,690.72,0.28955293]
[1736687334963,1.07849032,691.9,690.72,0.28955293]
[1736687336262,1.07849032,691.91,690.72,0.28955293]
[1736687337265,1.07849032,691.9,690.72,0.28955293]
[1736687337961,1.36752436,691.96,690.72,0.28955293]
[1736687338966,0.28903404,691.96,690.72,0.28955293]
[1736687346172,1.07849032,691.93,690.72,0.28955293]
[1736687346972,1.51043306,691.93,690.72,0.28955293]
[1736687347172,1.79947963,691.93,690.72,0.28955293]
[1736687348473,0.28905075,691.92,690.72,0.28955293]
[1736687352176,1.36754107,691.92,690.72,0.28955293]
[1736687353372,0.28905075,691.92,690.72,0.28955293]
[1736687361587,0.28905075,691.92,690.72,5.98288912]
[1736687361786,0.28905075,691.92,690.73,1.78285203]
[1736687362590,0.28905075,691.92,690.73,2.69425593]
[1736687363289,0.28905075,691.92,690.74,2.99854741]
[1736687363591,0.28905075,691.92,690.75,1.78285203]
[1736687365389,0.28905075,691.92,690.72,0.28955293]
[1736687389213,0.28905075,691.92,690.73,1.29642876]
[1736687390014,0.28905075,691.92,690.73,3.98945779]
[1736687390218,1.07849032,691.91,690.75,1.29642876]
[1736687390715,1.07849032,691.91,690.75,3.07817257]
[1736687390913,1.07849032,691.91,690.76,1.78174381]
[1736687391111,1.07849032,691.91,690.76,1.29642876]
[1736687392316,0.28905075,691.92,690.81,1.29642876]
[1736687393315,0.28905075,691.92,690.79,1.29642876]
[1736687393817,0.28905075,691.92,690.78,1.29642876]
[1736687394014,0.28905075,691.92,690.78,3.07817257]
[1736687394317,0.28905075,691.92,690.79,1.29642876]
[1736687394914,0.28905075,691.92,690.79,4.29497617]
[1736687396121,0.28905075,691.92,690.8,1.78155745]
[1736687396419,1.36754107,691.92,690.79,1.29642876]
[1736687399019,1.07849032,691.89,690.77,1.78160005]
[1736687399717,1.07849032,691.89,690.77,4.78014746]
[1736687399916,1.07849032,691.89,690.78,1.78160005]
[1736687400221,1.07849032,691.88,690.78,1.78160005]
[1736687402117,1.07849032,691.89,690.78,1.78160005]
[1736687403123,1.07849032,691.89,690.78,4.78014746]
[1736687403319,1.07849032,691.89,690.79,1.78160005]
[1736687406122,1.07849032,691.9,690.79,1.78160005]
[1736687406823,1.07849032,691.9,690.79,4.78014746]
[1736687407123,1.07849032,691.9,690.8,1.78160005]
[1736687407322,1.36754107,691.92,690.8,3.07802881]
[1736687408322,0.28905075,691.92,690.81,2.99854741]
[1736687408922,1.36754107,691.92,690.81,2.99854741]
[1736687409323,1.36754107,691.92,690.82,1.78280561]
[1736687410826,0.28905075,691.92,690.82,1.78280561]
[1736687411825,0.28905075,691.92,690.82,6.07778178]
[1736687412022,0.28905075,691.92,690.82,4.29497617]
[1736687412426,0.28905075,691.92,690.82,2.99854741]
[1736687413228,0.28905075,691.92,690.78,1.29642876]
[1736687413929,1.07849032,691.9,690.74,1.29642876]
[1736687414528,1.07849032,691.9,690.74,3.08088984]
[1736687414724,1.07849032,691.9,690.75,4.78300849]
[1736687414922,1.07849032,691.91,690.76,1.78446108]
[1736687415629,0.28905075,691.92,690.76,1.78446108]
[1736687416228,0.28905075,691.92,690.76,4.78300849]
[1736687416529,0.28905075,691.92,690.77,1.78446108]
[1736687418528,0.28905075,691.92,690.73,1.78446108]
[1736687419328,0.28905075,691.92,690.72,3.28810034]
[1736687420425,0.28905075,691.92,690.72,0.28955293]
[1736687430439,0.28905075,691.92,690.8,1.29642876]
[1736687431536,0.28905075,691.92,690.79,1.29642876]
[1736687433436,0.28905075,691.92,690.8,1.29642876]
[1736687436245,0.28905075,691.92,690.8,2.20835488]
[1736687436546,0.28905075,691.92,690.81,1.29642876]
[1736687437443,0.28905075,691.92,690.8,0.91192612]
[1736687437644,0.28905075,691.92,690.79,2.69601421]
[1736687437844,0.28905075,691.92,690.8,2.99854741]
[1736687438145,0.28905075,691.92,690.81,2.69601421]
[1736687439645,0.28905075,691.92,690.82,2.99854741]
[1736687439843,0.28905075,691.92,690.83,2.69601421]
[1736687441750,0.28905075,691.92,690.84,2.99854741]
[1736687441948,0.28905075,691.92,690.85,2.69601421]
[1736687442943,0.28905075,691.92,690.85,1.78408809]
[1736687443649,0.28905075,691.92,690.82,2.99854741]
[1736687445346,0.28905075,691.92,690.78,1.29642876]
[1736687445549,0.28905075,691.92,690.72,0.28955293]
[1736687446448,1.50960311,692.35,690.72,0.28955293]
[1736687453456,0.2888754,692.34,690.72,0.28955293]
[1736687470466,1.36736572,692.34,690.72,0.28955293]
[1736687472266,1.07849032,692.33,690.72,0.28955293]
[1736687473064,0.2888754,692.34,690.72,0.28955293]
[1736687476065,1.36736572,692.34,690.72,0.28955293]
[1736687477963,1.07849032,692.32,690.72,0.28955293]
[1736687478861,0.28889209,692.3,690.72,0.28955293]
[1736687489078,1.07849032,692.26,690.72,0.28955293]
[1736687489677,1.51005619,692.25,690.72,0.28955293]
[1736687489877,0.28891713,692.24,690.72,0.28955293]
[1736687490979,1.36740745,692.24,690.72,0.28955293]
[1736687493482,1.07849032,692.23,690.72,0.28955293]
[1736687493680,0.28892548,692.22,690.72,0.28955293]
[1736687494080,1.07849032,692.21,690.72,0.28955293]
[1736687495381,1.07849032,692.2,690.72,0.28955293]
[1736687496581,1.07849032,692.18,690.72,0.28955293]
[1736687497475,0.28894635,692.17,690.72,0.28955293]
[1736687499478,1.07849032,692.14,690.72,0.28955293]
[1736687499684,0.28896305,692.13,690.72,0.28955293]
[1736687500079,1.79894826,692.13,690.72,0.28955293]
[1736687500786,2.87743858,692.13,690.72,0.28955293]
[1736687501785,1.07849032,692.1,690.73,1.29642876]
[1736687502681,1.07849032,692.1,690.73,3.9882403]
[1736687502884,1.07849032,692.1,690.74,0.91037896]
[1736687503582,2.87743858,692.13,690.77,1.29642876]
[1736687504384,1.07849032,692.12,690.78,1.29642876]
[1736687505485,1.07849032,692.11,690.82,1.29642876]
[1736687506287,0.28896723,692.12,690.72,0.28955293]
[1736687517999,0.28896723,692.12,690.72,1.58598169]
[1736687518595,0.28896723,692.12,690.72,4.27671836]
[1736687518794,0.28896723,692.12,690.74,1.29642876]
[1736687518996,0.28896723,692.12,690.75,0.28954035]
[1736687520801,0.28896723,692.12,690.77,1.29642876]
[1736687521601,1.36745755,692.12,690.79,1.29642876]
[1736687523503,1.36745755,692.12,690.81,1.29642876]
[1736687524405,1.36745755,692.12,690.79,3.92230592]
[1736687524406,1.07849032,692.1,690.87,1.29642876]
[1736687525404,0.28896723,692.12,690.84,1.29642876]
[1736687525405,1.07849032,692.06,690.84,1.29642876]
[1736687526406,0.28896723,692.12,690.83,0.91159831]
[1736687526407,1.07849032,692.03,690.83,3.92230592]
[1736687526706,1.07849032,692.03,690.84,2.6914822]
[1736687528409,1.07849032,692.03,690.85,3.01070761]
[1736687528610,1.07849032,692.03,690.86,2.6914822]
[1736687529807,1.07849032,692.03,690.87,3.01070761]
[1736687530006,1.07849032,692.02,690.88,1.77988389]
[1736687530209,1.07849032,692.02,690.88,2.69198406]
[1736687531213,1.07849032,692.04,690.89,3.01070761]
[1736687531413,1.07849032,692.04,690.9,1.77988389]
[1736687532011,1.07849032,692.03,690.9,1.77988389]
[1736687532208,1.07849032,692.03,690.9,2.69213909]
[1736687532711,1.07849032,692.03,690.91,3.01070761]
[1736687532912,1.07849032,692.03,690.92,1.77988389]
[1736687533907,1.07849032,692.03,690.91,3.01070761]
[1736687534111,1.07849032,692.02,690.91,3.01070761]
[1736687534310,1.07849032,692.02,690.83,1.29642876]
[1736687535510,1.07849032,692.01,690.79,1.29642876]
[1736687535913,1.07849032,692.01,690.79,2.20880643]
[1736687536918,1.07849032,692.01,690.79,5.21951404]
[1736687537220,1.07849032,692.02,690.8,1.78379633]
[1736687538520,1.07849032,692.01,690.8,1.78379633]
[1736687538818,1.07849032,692.01,690.79,3.01070761]
[1736687539119,1.07849032,692.01,690.77,3.01070761]
[1736687539319,1.07849032,692.01,690.78,1.78358126]
[1736687539622,1.07849032,692.03,690.78,1.78358126]
[1736687540419,1.07849032,692.06,690.78,1.78358126]
[1736687541219,1.07849032,692.06,690.75,0.28954035]
[1736687542518,1.07849032,692.02,690.75,0.28954035]
[1736687543525,1.07849032,692.04,690.75,0.28954035]
[1736687544426,1.07849032,692.02,690.75,0.28954035]
[1736687544919,1.07849032,692.02,690.75,3.30024796]
[1736687545119,1.07849032,692.01,690.76,2.6957173]
[1736687546718,1.07849032,692.01,690.77,3.01070761]
[1736687546919,1.07849032,692.01,690.78,2.6957173]
[1736687548224,1.50993607,692.08,690.78,2.6957173]
[1736687548225,1.07849032,692.04,690.78,2.6957173]
[1736687548724,1.07849032,692.04,690.79,3.01070761]
[1736687548924,1.07849032,692.04,690.8,1.78358126]
[1736687549225,1.07849032,692.03,690.79,3.01070761]
[1736687550124,1.07849032,692.02,690.79,3.01070761]
[1736687550520,1.07849032,692.02,690.56,1.29642876]
[1736687550719,1.5101381,692.01,690.56,1.29642876]
[1736687550925,2.58862842,692.01,690.53,1.29642876]
[1736687551821,1.5101381,692.01,690.51,1.29642876]
[1736687552923,1.5101381,692.01,690.52,1.29642876]
[1736687555427,1.5101381,692.01,690.52,3.07898593]
[1736687556030,1.5101381,692.01,690.52,1.78255717]
[1736687557227,1.5101381,692.01,690.46,2.69359775]
[1736687557432,0.26577734,692.0,690.46,2.69359775]
[1736687557630,1.5101381,692.01,690.46,2.69359775]
[1736687557831,1.07849032,691.97,690.56,1.29642876]
[1736687558935,1.07849032,691.97,690.55,1.29642876]
[1736687563038,1.07849032,691.98,690.54,3.92174819]
[1736687563239,1.07849032,691.98,690.55,2.69359775]
[1736687563836,1.5101381,692.01,690.55,2.69359775]
[1736687563837,1.07849032,691.99,690.55,2.69359775]
[1736687565039,1.07849032,691.98,690.55,2.69359775]
[1736687565233,1.07849032,691.98,690.56,3.01070761]
[1736687565435,1.07849032,691.98,690.57,2.69359775]
[1736687566841,1.07849032,691.97,690.58,3.01070761]
[1736687567042,1.07849032,691.97,690.59,2.69359775]
[1736687567440,1.07849032,691.96,690.59,2.69359775]
[1736687568542,1.5101381,692.01,690.59,2.69359775]
[1736687568543,1.07849032,691.95,690.6,3.01070761]
[1736687568836,1.07849032,691.95,690.61,2.69359775]
[1736687569243,1.51032926,691.94,690.61,2.69359775]
[1736687569443,2.58881958,691.94,690.61,2.69359775]
[1736687570242,2.58881958,691.94,690.62,3.01070761]
[1736687570437,2.58881958,691.94,690.63,1.78255717]
[1736687571247,1.51032926,691.94,690.63,1.78255717]
[1736687571746,1.51032926,691.94,690.61,1.78255717]
[1736687571944,1.51032926,691.94,690.61,3.07898593]
[1736687572144,1.51032926,691.94,690.62,1.78255717]
[1736687572541,1.51032926,691.94,690.61,1.29642876]
[1736687573743,1.51032926,691.94,690.62,1.29642876]
[1736687574750,1.51032926,691.94,690.63,1.29642876]
[1736687574949,1.51032926,691.94,690.63,3.07898593]
[1736687576251,1.51032926,691.94,690.64,3.01070761]
[1736687576451,0.28904657,691.93,690.65,1.78255717]
[1736687578052,0.28904657,691.93,690.65,4.79326478]
[1736687578253,0.28904657,691.93,690.66,1.78255717]
[1736687578453,1.07849032,691.91,690.66,1.78255717]
[1736687579251,1.07849032,691.91,690.64,1.78255717]
[1736687579550,1.07849032,691.91,690.64,2.69319162]
[1736687580150,1.07849032,691.9,690.64,3.98962038]
[1736687580353,1.07849032,691.9,690.65,0.91063445]
[1736687581054,1.07849032,691.89,690.65,5.21777082]
[1736687581353,1.07849032,691.89,690.66,2.69319162]
[1736687582248,1.07849032,691.89,690.67,4.30713637]
[1736687582453,1.07849032,691.89,690.68,2.69337457]
[1736687583255,1.07849032,691.9,690.7,1.29642876]
[1736687584355,0.28904657,691.93,690.62,3.01070761]
[1736687585956,0.28904657,691.93,690.63,1.78090152]
[1736687586257,0.28904657,691.93,690.59,1.78090152]
[1736687586556,1.36753689,691.93,690.59,2.07050895]
[1736687586751,1.36753689,691.93,690.59,0.28960743]
[1736687587957,0.28904657,691.93,690.59,0.28960743]
[1736687589957,1.07849032,691.89,690.71,1.29642876]
[1736687591059,1.07849032,691.89,690.7,1.29642876]
[1736687592559,1.07849032,691.9,690.7,1.29642876]
[1736687593257,0.28904657,691.93,690.74,1.29642876]
[1736687594457,0.28904657,691.93,690.75,1.29642876]
[1736687595457,0.28904657,691.93,690.81,1.29642876]
[1736687596362,0.28904657,691.93,690.72,3.07733028]
[1736687596561,0.28904657,691.93,690.72,1.29642876]
[1736687596763,0.28904657,691.93,690.73,3.30025634]
[1736687596955,0.28904657,691.93,690.74,2.98195816]
[1736687597560,0.28904657,691.93,690.79,1.29642876]
[1736687598365,0.28904657,691.93,690.78,1.29642876]
[1736687600763,0.28904657,691.93,690.74,0.28954454]
[1736687627585,0.28904657,691.93,690.75,1.29642876]
[1736687628283,0.28904657,691.93,690.76,1.29642876]
[1736687629179,0.28904657,691.93,690.74,0.28954454]
[1736687629180,0.28904657,691.93,690.78,1.29642876]
[1736687630088,0.28904657,691.93,690.77,1.29642876]
[1736687630487,0.28904657,691.93,690.77,6.08799017]
[1736687630684,0.28904657,691.93,690.78,1.77846479]
[1736687631087,0.28904657,691.93,690.77,4.30952538]
[1736687631392,0.28904657,691.93,690.74,0.28954454]
[1736687632185,0.28904657,691.93,690.77,1.29642876]
[1736687632789,0.28904657,691.93,690.77,1.58596073]
[1736687633291,0.28904657,691.93,690.78,1.29642876]
[1736687634294,0.28904657,691.93,690.79,1.29642876]
[1736687634695,0.28904657,691.93,690.79,2.20644868]
[1736687634893,0.28904657,691.93,690.79,5.21581593]
[1736687635094,0.28904657,691.93,690.8,2.97865733]
[1736687635290,0.28904657,691.93,690.81,0.2895152]
[1736687635694,0.28904657,691.93,690.82,1.29642876]
[1736687636093,0.28904657,691.93,690.82,6.99493395]
[1736687636293,0.28904657,691.93,690.83,2.68913794]
[1736687636496,0.28904657,691.93,690.85,1.29642876]
[1736687637491,0.28904657,691.93,690.81,0.2895152]
[1736687640592,1.50981051,692.22,690.81,0.2895152]
[1736687642093,1.07849032,692.41,690.81,0.2895152]
[1736687642301,1.50974501,692.31,690.81,0.2895152]
[1736687642697,0.28885037,692.4,690.81,0.2895152]
[1736687642897,1.50965223,692.35,690.81,0.2895152]
[1736687647307,0.28885037,692.4,690.81,0.2895152]
[1736687648102,0.28885037,692.4,690.87,1.29642876]
[1736687648301,0.28885037,692.4,690.88,0.28948587]
[1736687651706,0.28885037,692.4,690.88,3.29885312]
[1736687652003,0.28885037,692.4,690.89,2.68956777]
[1736687652207,0.28885037,692.4,690.9,0.28947749]
[1736687653610,0.28885037,692.4,690.9,3.29884474]
[1736687653811,0.28885037,692.4,690.91,1.77943519]
[1736687654106,0.28885037,692.4,690.92,0.28946911]
[1736687656107,0.28885037,692.4,690.92,2.0689043]
[1736687656314,0.28885037,692.4,690.92,0.28946911]
[1736687656905,0.2656231,692.39,690.92,0.28946911]
[1736687657706,0.26562454,692.38,690.92,0.28946911]
[1736687657910,0.28885037,692.4,690.92,0.28946911]
[1736687658110,0.26562486,692.39,690.92,0.28946911]
[1736687659715,0.26563382,692.38,690.92,0.28946911]
[1736687659914,0.28885037,692.4,690.92,0.28946911]
[1736687671224,1.07849032,692.36,690.99,1.29642876]
[1736687671416,1.07849032,692.36,691.0,0.2894356]
[1736687672419,0.28885037,692.4,691.0,0.2894356]
[1736687675529,0.28885037,692.4,691.09,1.29642876]
[1736687676527,0.28885037,692.4,691.08,1.29642876]
[1736687680228,0.28885037,692.4,691.09,0.2893979]
[1736687690334,0.28885037,692.4,691.09,3.29876515]
[1736687690538,0.28885037,692.4,691.1,1.77395493]
[1736687690933,0.28885037,692.4,691.1,2.6810632]
[1736687691137,0.28885037,692.4,691.11,0.28938953]
[1736687691931,0.28885037,692.4,691.11,2.06334446]
[1736687692134,0.28885037,692.4,691.11,0.28938953]
[1736687693937,0.28885037,692.4,691.11,2.97047598]
[1736687694841,0.28885037,692.4,691.12,3.00936725]
[1736687695041,0.28885037,692.4,691.13,2.9704676]
[1736687695244,0.28885037,692.4,691.14,0.28937697]
[1736687696540,0.28885037,692.4,691.14,3.29874422]
[1736687696735,0.28885037,692.4,691.15,2.68108645]
[1736687698440,0.28885037,692.4,691.16,3.00936725]
[1736687698637,0.28885037,692.4,691.17,2.97045086]
[1736687698841,0.28885037,692.4,691.18,0.28936022]
[1736687699141,0.28885037,692.4,691.19,1.29642876]
[1736687699340,0.28885037,692.4,691.2,0.28935185]
[1736687699740,0.28885037,692.4,691.2,2.9704383]
[1736687700042,0.28885037,692.4,691.21,3.00936725]
[1736687700236,0.28885037,692.4,691.22,2.97042992]
[1736687700638,0.28885037,692.4,691.23,0.28933929]
[1736687701942,0.28885037,692.4,691.23,3.29870654]
[1736687702142,0.28885037,692.4,691.24,1.77395493]
[1736687703543,0.28885037,692.4,691.23,0.28933929]
[1736687706449,1.50873048,692.71,691.28,1.29642876]
[1736687706749,1.07849032,692.81,691.28,1.29642876]
[1736687706947,0.55415855,692.8,691.28,1.29642876]
[1736687707148,0.26547495,692.79,691.28,1.29642876]
[1736687707648,0.26547495,692.79,691.3,1.29642876]
[1736687708043,1.36717392,692.8,691.3,1.29642876]
[1736687708548,0.2886836,692.8,691.26,1.77395493]
[1736687708948,0.2886836,692.8,691.26,2.68036752]
[1736687709347,0.2886836,692.8,691.27,3.00936725]
[1736687710348,0.2886836,692.8,691.28,0.28931836]
[1736687718151,0.27450134,692.8,691.28,0.28931836]
[1736687730668,0.27450134,692.8,691.28,1.58574712]
[1736687731768,0.27450134,692.8,691.29,1.29642876]
[1736687732574,0.27450134,692.8,691.29,3.06650577]
[1736687732764,0.27450134,692.8,691.32,1.29642876]
[1736687734264,1.50850158,692.79,691.33,0.28929744]
[1736687734571,0.28869193,692.78,691.33,0.28929744]
[1736687736964,0.28869193,692.78,691.33,2.96695033]
[1736687737170,0.28869193,692.78,691.44,1.29642876]
[1736687737670,0.28869193,692.78,691.45,0.28924723]
[1736687738474,0.28869193,692.78,691.47,1.29642876]
[1736687739774,0.28869193,692.78,691.5,1.29642876]
[1736687740771,0.28869193,692.78,691.56,1.29642876]
[1736687741775,0.28869193,692.78,691.51,0.90588771]
[1736687741776,0.28869193,692.78,691.6,1.29642876]
[1736687743575,0.28869193,692.78,691.58,1.29642876]
[1736687744578,0.28869193,692.78,691.59,1.29642876]
[1736687745382,0.28869193,692.78,691.6,1.29642876]
[1736687745676,0.28869193,692.78,691.61,0.28918031]
[1736687791810,0.26547351,692.77,691.61,0.28918031]
[1736687792212,1.34396383,692.77,691.61,0.28918031]
[1736687792412,0.26547351,692.76,691.61,0.28918031]
[1736687792613,0.28870443,692.75,691.61,0.28918031]
[1736687792814,0.26547351,692.74,691.61,0.28918031]
[1736687793010,1.77411678,692.74,691.61,0.28918031]
[1736687793210,1.07849032,692.71,691.61,0.28918031]
[1736687794013,1.07849032,692.69,691.61,0.28918031]
[1736687794814,1.07849032,692.68,691.61,0.28918031]
[1736687796015,1.07849032,692.7,691.61,0.28918031]
[1736687798018,1.07849032,692.66,691.61,0.28918031]
[1736687799013,1.07849032,692.7,691.61,0.28918031]
[1736687799818,1.07849032,692.69,691.61,0.28918031]
[1736687800721,1.07849032,692.7,691.61,0.28918031]
[1736687801623,1.07849032,692.69,691.61,0.28918031]
[1736687802321,1.07849032,692.68,691.61,0.28918031]
[1736687804321,1.07849032,692.71,691.61,0.28918031]
[1736687807624,1.07849032,692.7,691.61,0.28918031]
[1736687808718,1.07849032,692.68,691.61,0.28918031]
[1736687809621,1.07849032,692.67,691.61,0.28918031]
[1736687811125,1.07849032,692.65,691.61,0.28918031]
[1736687811826,1.07849032,692.63,691.61,0.28918031]
[1736687812423,1.07849032,692.62,691.61,0.28918031]
[1736687813122,1.07849032,692.59,691.61,0.28918031]
[1736687815828,1.7973368,692.75,691.61,0.28918031]
[1736687815829,1.07849032,692.57,691.61,0.28918031]
[1736687816827,1.07849032,692.56,691.61,0.28918031]
[1736687818831,1.07849032,692.59,691.61,0.28918031]
[1736687822932,1.07849032,692.6,691.61,0.28918031]
[1736687823831,1.07849032,692.58,691.61,0.28918031]
[1736687824731,1.07849032,692.59,691.61,0.28918031]
[1736687826233,1.7973368,692.75,691.61,0.28918031]
[1736687826234,1.07849032,692.56,691.61,0.28918031]
[1736687829936,1.07849032,692.54,691.61,0.28918031]
[1736687830134,1.07849032,692.54,691.34,3.00936725]
[1736687830334,1.07849032,692.54,691.28,1.29642876]
[1736687831031,1.07849032,692.53,691.21,1.78056941]
[1736687831238,1.07849032,692.53,691.21,2.06991707]
[1736687832131,1.07849032,692.55,691.21,0.28934766]
[1736687832938,1.07849032,692.57,691.21,0.28934766]
[1736687833736,1.07849032,692.6,691.21,0.28934766]
[1736687834538,1.07849032,692.63,691.21,0.28934766]
[1736687834737,1.07849032,692.63,691.24,1.29642876]
[1736687835639,1.07849032,692.64,691.25,1.29642876]
[1736687836741,1.07849032,692.67,691.32,1.29642876]
[1736687837737,0.28870443,692.75,691.24,1.78056941]
[1736687838335,0.28870443,692.75,691.21,0.28934766]
[1736687843443,0.28870443,692.75,691.21,2.06991707]
[1736687845147,0.28870443,692.75,691.21,2.97911464]
[1736687846047,0.28870443,692.75,691.28,1.29642876]
[1736687846248,0.28870443,692.75,691.29,0.28931418]
[1736687847350,0.28870443,692.75,691.37,1.29642876]
[1736687848851,0.28870443,692.75,691.34,1.29642876]
[1736687850354,0.28870443,692.75,691.33,2.20562633]
[1736687850747,0.28870443,692.75,691.33,5.21499358]
[1736687850947,0.28870443,692.75,691.34,2.68976698]
[1736687851547,0.28870443,692.75,691.34,1.78056941]
[1736687852553,0.28870443,692.75,691.35,0.28928907]
[1736687856551,0.28870443,692.75,691.35,2.97862447]
[1736687857250,0.28870443,692.75,691.36,3.00936725]
[1736687857450,0.28870443,692.75,691.37,2.9786161]
[1736687857854,0.28870443,692.75,691.39,0.28927233]
[1736687859953,0.28870443,692.75,691.39,2.97860773]
[1736687860857,0.28870443,692.75,691.4,3.00936725]
[1736687861057,0.28870443,692.75,691.41,2.97859936]
[1736687861253,0.28870443,692.75,691.42,0.28925978]
[1736687862653,0.28870443,692.75,691.42,3.29862703]
[1736687862857,0.28870443,692.75,691.43,2.68834244]
[1736687863055,0.28870443,692.75,691.44,0.28925141]
[1736687864559,0.28870443,692.75,691.44,3.29861866]
[1736687864753,0.28870443,692.75,691.45,2.68834244]
[1736687864954,0.28870443,692.75,691.46,0.28924305]
[1736687866057,0.28870443,692.75,691.46,3.2986103]
[1736687866253,0.28870443,692.75,691.47,2.68834244]
[1736687866457,0.28870443,692.75,691.48,0.28923468]
[1736687877368,0.28870443,692.75,691.54,1.29642876]
[1736687877567,0.28870443,692.75,691.55,0.2892054]
[1736687879768,0.28870443,692.75,691.55,2.96917737]
[1736687881269,0.28870443,692.75,691.55,2.0629727]
[1736687881471,0.28870443,692.75,691.56,3.00936725]
[1736687881673,0.28870443,692.75,691.57,2.06296434]
[1736687881865,0.28870443,692.75,691.58,0.28919286]
[1736687890475,1.50783707,693.23,691.58,0.28919286]
[1736687891378,0.28850869,693.22,691.58,0.28919286]
[1736687902289,0.26536558,693.21,691.58,0.28919286]
[1736687903181,1.07849032,693.19,691.58,0.28919286]
[1736687903380,0.26536558,693.18,691.58,0.28919286]
[1736687904086,1.07849032,693.17,691.58,0.28919286]
[1736687904287,0.26536558,693.16,691.58,0.28919286]
[1736687904783,1.50803854,693.15,691.58,0.28919286]
[1736687904982,1.07849032,693.14,691.58,0.28919286]
[1736687905185,0.28854616,693.13,691.58,0.28919286]
[1736687909685,1.36703648,693.13,691.58,0.28919286]
[1736687910892,0.26537997,693.12,691.58,0.28919286]
[1736687911091,0.28855448,693.11,691.58,0.28919286]
[1736687911290,0.26537602,693.1,691.58,0.28919286]
[1736687911493,0.28855448,693.11,691.58,0.28919286]
[1736687911793,1.07849032,693.08,691.58,0.28919286]
[1736687911987,0.28857114,693.07,691.58,0.28919286]
[1736687915199,1.50805488,693.06,691.58,0.28919286]
[1736687915992,1.79663018,693.06,691.58,0.28919286]
[1736687929109,1.07849032,693.05,691.58,4.59498887]
[1736687929410,1.07849032,693.05,691.59,2.677602]
[1736687929711,1.07849032,693.02,691.65,1.29642876]
[1736687929908,1.07849032,693.02,691.65,1.58559235]
[1736687930707,1.07849032,693.0,691.66,1.29642876]
[1736687931210,1.07849032,693.0,691.66,3.97403076]
[1736687931411,1.07849032,693.0,691.67,0.90757607]
[1736687931804,1.07849032,693.01,691.69,1.29642876]
[1736687932807,1.07849032,693.0,691.7,1.29642876]
[1736687934008,1.07849032,693.02,691.65,0.28916359]
[1736687935205,1.07849032,693.0,691.65,0.28916359]
[1736687935405,1.07849032,693.0,691.65,2.06598184]
[1736687936211,1.07849032,692.99,691.65,3.3624106]
[1736687936607,1.07849032,692.99,691.66,3.00936725]